[Event "Late-Titled-Tuesday-Blitz-January-23-2024"]
[Site "Chess.com"]
[Date "2024.01.23"]
[Round "3"]
[White "BogdanDeac"]
[Black "FrenchHarvey"]
[Result "1-0"]
[WhiteElo "3068"]
[BlackElo "2792"]
[TimeControl "180+1"]
[EndTime "14:28:28 PST"]
[Termination "BogdanDeac won by resignation"]

1. d4 {[%clk 0:03:00.9]} 1... Nf6 {[%clk 0:02:58.9]} 2. Bf4 {[%clk 0:03:01.5]}
2... d6 {[%clk 0:02:58.3]} 3. Nc3 {[%clk 0:03:00.7]} 3... Nbd7 {[%clk
0:02:55.9]} 4. Nf3 {[%clk 0:03:00.6]} 4... c5 {[%clk 0:02:49.9]} 5. d5 {[%clk
0:03:00.4]} 5... g6 {[%clk 0:02:48.9]} 6. e4 {[%clk 0:03:00.1]} 6... Bg7 {[%clk
0:02:49.2]} 7. Qd2 {[%clk 0:02:58.4]} 7... h6 {[%clk 0:02:49.1]} 8. h3 {[%clk
0:02:55.3]} 8... a6 {[%clk 0:02:48]} 9. a4 {[%clk 0:02:54.7]} 9... Rb8 {[%clk
0:02:48.2]} 10. e5 {[%clk 0:02:43.3]} 10... dxe5 {[%clk 0:02:35.2]} 11. Nxe5
{[%clk 0:02:42.7]} 11... Nxe5 {[%clk 0:02:31.4]} 12. Bxe5 {[%clk 0:02:42.6]}
12... Ra8 {[%clk 0:02:30.9]} 13. Bc4 {[%clk 0:02:30.9]} 13... O-O {[%clk
0:02:30.5]} 14. O-O {[%clk 0:02:30]} 14... Bf5 {[%clk 0:02:19.4]} 15. Rfe1
{[%clk 0:02:24.8]} 15... Qd7 {[%clk 0:02:17]} 16. a5 {[%clk 0:02:02.8]} 16...
Rad8 {[%clk 0:02:06.7]} 17. Rad1 {[%clk 0:01:59.5]} 17... g5 {[%clk 0:01:59.9]}
18. Qe2 {[%clk 0:01:53]} 18... Bg6 {[%clk 0:01:51.3]} 19. b3 {[%clk 0:01:50.9]}
19... Nh5 {[%clk 0:01:50]} 20. Bxg7 {[%clk 0:01:46.7]} 20... Nxg7 {[%clk
0:01:50.4]} 21. Qxe7 {[%clk 0:01:40.4]} 21... Bxc2 {[%clk 0:01:49.9]} 22. Rc1
{[%clk 0:01:39.8]} 22... Bf5 {[%clk 0:01:47.7]} 23. Na4 {[%clk 0:01:21.7]} 23...
Rfe8 {[%clk 0:01:46.7]} 24. Qf6 {[%clk 0:00:51.8]} 24... Bg6 {[%clk 0:01:45.7]}
25. Nxc5 {[%clk 0:00:30.8]} 25... Qc7 {[%clk 0:01:39.8]} 26. Ne6 {[%clk
0:00:11]} 26... fxe6 {[%clk 0:01:39.6]} 27. Qxg6 {[%clk 0:00:09.3]} 27... Qxa5
{[%clk 0:01:36.1]} 28. dxe6 {[%clk 0:00:07.5]} 28... Re7 {[%clk 0:01:36.6]} 29.
Red1 {[%clk 0:00:06.3]} 29... Rf8 {[%clk 0:01:33.2]} 30. Rd7 {[%clk 0:00:06.1]}
30... Qb4 {[%clk 0:01:32.3]} 31. Qxh6 {[%clk 0:00:04.9]} 31... b5 {[%clk
0:01:29.5]} 32. Qxg5 {[%clk 0:00:05.1]} 32... Rfe8 {[%clk 0:01:21]} 33. Rxe7
{[%clk 0:00:04.2]} 33... Rxe7 {[%clk 0:01:21.1]} 34. Bd5 {[%clk 0:00:03.6]}
34... Kh7 {[%clk 0:01:06.7]} 35. h4 {[%clk 0:00:03.1]} 35... Qd4 {[%clk
0:00:56.8]} 36. h5 {[%clk 0:00:03.2]} 36... Re8 {[%clk 0:00:53.1]} 37. h6 {[%clk
0:00:02.5]} 37... Nxe6 {[%clk 0:00:52.8]} 38. Bxe6 {[%clk 0:00:02.7]} 38... Kh8
{[%clk 0:00:43.6]} 39. Qg7+ {[%clk 0:00:02.3]} 39... Qxg7 {[%clk 0:00:43.1]} 40.
hxg7+ {[%clk 0:00:03.2]} 40... Kxg7 {[%clk 0:00:43.9]} 41. Bc8 {[%clk
0:00:03.8]} 41... a5 {[%clk 0:00:43.7]} 42. Bd7 {[%clk 0:00:03.8]} 42... Rb8
{[%clk 0:00:43.9]} 43. Ra1 {[%clk 0:00:03.9]} 43... a4 {[%clk 0:00:43.6]} 44.
bxa4 {[%clk 0:00:04]} 44... bxa4 {[%clk 0:00:44.5]} 45. Rxa4 {[%clk 0:00:04]}
45... Kf6 {[%clk 0:00:45.4]} 46. Bg4 {[%clk 0:00:03.5]} 46... Rb1+ {[%clk
0:00:46]} 47. Kh2 {[%clk 0:00:03.6]} 47... Kg5 {[%clk 0:00:46.9]} 48. Kg3 {[%clk
0:00:03.7]} 48... Rb3+ {[%clk 0:00:46.8]} 49. Bf3 {[%clk 0:00:04.1]} 49... Rc3
{[%clk 0:00:47.7]} 50. Rg4+ {[%clk 0:00:04.2]} 50... Kh6 {[%clk 0:00:48.5]} 51.
Re4 {[%clk 0:00:04.8]} 51... Kg6 {[%clk 0:00:48.6]} 52. Re3 {[%clk 0:00:05.4]}
52... Rc1 {[%clk 0:00:48.8]} 53. Be4+ {[%clk 0:00:05.9]} 53... Kg5 {[%clk
0:00:49.7]} 54. f4+ {[%clk 0:00:06.4]} 54... Kf6 {[%clk 0:00:50]} 55. Bf3 {[%clk
0:00:07.3]} 55... Kf5 {[%clk 0:00:50.3]} 56. Re5+ {[%clk 0:00:07.5]} 56... Kf6
{[%clk 0:00:50.7]} 57. Kg4 {[%clk 0:00:08.4]} 57... Rc4 {[%clk 0:00:50.7]} 58.
Rf5+ {[%clk 0:00:08.6]} 58... Kg6 {[%clk 0:00:50.9]} 59. g3 {[%clk 0:00:09.5]}
59... Kh6 {[%clk 0:00:51.2]} 60. Rh5+ {[%clk 0:00:09.7]} 60... Kg6 {[%clk
0:00:51.7]} 61. Re5 {[%clk 0:00:10.6]} 1-0

[Event "Late-Titled-Tuesday-Blitz-January-23-2024"]
[Site "Chess.com"]
[Date "2024.01.23"]
[Round "3"]
[White "Vladimir_2020"]
[Black "stoleriu"]
[Result "1-0"]
[WhiteElo "2735"]
[BlackElo "2567"]
[TimeControl "180+1"]
[EndTime "14:28:32 PST"]
[Termination "Vladimir_2020 won by checkmate"]

1. e4 {[%clk 0:03:00.9]} 1... e6 {[%clk 0:02:59.9]} 2. d4 {[%clk 0:03:00.3]}
2... d5 {[%clk 0:02:53.5]} 3. Nd2 {[%clk 0:03:00]} 3... Be7 {[%clk 0:02:53.8]}
4. Ngf3 {[%clk 0:02:58.8]} 4... Nf6 {[%clk 0:02:53.8]} 5. e5 {[%clk 0:02:58.6]}
5... Nfd7 {[%clk 0:02:54.4]} 6. Bd3 {[%clk 0:02:57.9]} 6... c5 {[%clk
0:02:55.3]} 7. c3 {[%clk 0:02:57.9]} 7... Nc6 {[%clk 0:02:55.9]} 8. O-O {[%clk
0:02:55.6]} 8... g5 {[%clk 0:02:56.5]} 9. dxc5 {[%clk 0:02:53]} 9... g4 {[%clk
0:02:55.6]} 10. Nd4 {[%clk 0:02:51.9]} 10... Ndxe5 {[%clk 0:02:56.5]} 11. Bb5
{[%clk 0:02:39.4]} 11... Bd7 {[%clk 0:02:54.1]} 12. b4 {[%clk 0:02:36.8]} 12...
Nxd4 {[%clk 0:02:51.8]} 13. Bxd7+ {[%clk 0:02:35.4]} 13... Nxd7 {[%clk
0:02:52.7]} 14. cxd4 {[%clk 0:02:34.7]} 14... h5 {[%clk 0:02:50.9]} 15. Nb3
{[%clk 0:02:28]} 15... Qc7 {[%clk 0:02:44.5]} 16. Qe2 {[%clk 0:02:16.1]} 16...
Nf6 {[%clk 0:02:34.6]} 17. b5 {[%clk 0:02:07.5]} 17... Ne4 {[%clk 0:02:31.6]}
18. f3 {[%clk 0:02:04.8]} 18... gxf3 {[%clk 0:02:31.5]} 19. Qxf3 {[%clk
0:02:04.9]} 19... f5 {[%clk 0:02:30.9]} 20. Bf4 {[%clk 0:02:04.7]} 20... Qd7
{[%clk 0:02:30.2]} 21. Be5 {[%clk 0:02:03]} 21... Bf6 {[%clk 0:02:27.6]} 22.
Bxf6 {[%clk 0:01:51.7]} 22... Nxf6 {[%clk 0:02:28.5]} 23. c6 {[%clk 0:01:38.9]}
23... bxc6 {[%clk 0:02:26.3]} 24. Nc5 {[%clk 0:01:39]} 24... Qd6 {[%clk
0:02:26.7]} 25. bxc6 {[%clk 0:01:33.6]} 25... Qxc6 {[%clk 0:02:27.6]} 26. Rac1
{[%clk 0:01:30.5]} 26... Qd6 {[%clk 0:02:23.6]} 27. Qe3 {[%clk 0:01:17.4]} 27...
Ne4 {[%clk 0:02:23.1]} 28. Nxe4 {[%clk 0:01:12.6]} 28... dxe4 {[%clk 0:02:24]}
29. Qg5 {[%clk 0:01:10.9]} 29... Kf7 {[%clk 0:02:20.9]} 30. d5 {[%clk
0:01:09.4]} 30... Raf8 {[%clk 0:02:06.9]} 31. dxe6+ {[%clk 0:01:05.6]} 31...
Kxe6 {[%clk 0:02:07.8]} 32. Qg6+ {[%clk 0:00:55.3]} 32... Rf6 {[%clk 0:02:07.3]}
33. Qg7 {[%clk 0:00:55.6]} 33... Re8 {[%clk 0:01:50.5]} 34. Qxa7 {[%clk
0:00:54.6]} 34... Re7 {[%clk 0:01:47.8]} 35. Qa8 {[%clk 0:00:45.9]} 35... Kf7
{[%clk 0:01:47.5]} 36. Qh8 {[%clk 0:00:42]} 36... Kg6 {[%clk 0:01:37.5]} 37.
Qg8+ {[%clk 0:00:41]} 37... Rg7 {[%clk 0:01:36.1]} 38. Qe8+ {[%clk 0:00:40.8]}
38... Kh6 {[%clk 0:01:35.2]} 39. Kh1 {[%clk 0:00:34.4]} 39... Qd7 {[%clk
0:00:46.2]} 40. Qb8 {[%clk 0:00:29.6]} 40... Kh7 {[%clk 0:00:31.1]} 41. Rc8
{[%clk 0:00:26.8]} 41... f4 {[%clk 0:00:17.3]} 42. Rd8 {[%clk 0:00:22.7]} 42...
Qg4 {[%clk 0:00:07.7]} 43. Rh8+ {[%clk 0:00:22.2]} 43... Kg6 {[%clk 0:00:08.3]}
44. Qe8+ {[%clk 0:00:21.4]} 44... Kf5 {[%clk 0:00:08.9]} 45. Rxh5+ {[%clk
0:00:19.5]} 45... Rg5 {[%clk 0:00:07.8]} 46. Qd7+ {[%clk 0:00:18.7]} 46... Kg6
{[%clk 0:00:07.7]} 47. Qh7# {[%clk 0:00:18.6]} 1-0

[Event "Late-Titled-Tuesday-Blitz-January-23-2024"]
[Site "Chess.com"]
[Date "2024.01.23"]
[Round "3"]
[White "MetiForce"]
[Black "Filipets"]
[Result "1-0"]
[WhiteElo "2845"]
[BlackElo "2599"]
[TimeControl "180+1"]
[EndTime "14:28:33 PST"]
[Termination "MetiForce won by resignation"]

1. d4 {[%clk 0:03:00.9]} 1... f5 {[%clk 0:02:48.1]} 2. Bg5 {[%clk 0:02:59.6]}
2... g6 {[%clk 0:02:46]} 3. e3 {[%clk 0:02:57.4]} 3... Nh6 {[%clk 0:02:33.3]} 4.
Bc4 {[%clk 0:02:51.6]} 4... d5 {[%clk 0:02:30.4]} 5. Bb3 {[%clk 0:02:49.5]} 5...
Nf7 {[%clk 0:02:28.6]} 6. Bf4 {[%clk 0:02:48.5]} 6... Bg7 {[%clk 0:02:24.2]} 7.
h4 {[%clk 0:02:42.3]} 7... c6 {[%clk 0:02:09.9]} 8. c4 {[%clk 0:02:37]} 8... e6
{[%clk 0:02:01.9]} 9. Nc3 {[%clk 0:02:35.4]} 9... Nd7 {[%clk 0:01:55.8]} 10. Nf3
{[%clk 0:02:29.6]} 10... Nf6 {[%clk 0:01:52.6]} 11. Ne5 {[%clk 0:02:26.7]} 11...
Ne4 {[%clk 0:01:30.1]} 12. Nxe4 {[%clk 0:02:12.8]} 12... fxe4 {[%clk 0:01:31]}
13. Nxf7 {[%clk 0:02:11.5]} 13... Kxf7 {[%clk 0:01:29.7]} 14. h5 {[%clk
0:02:11.7]} 14... Bd7 {[%clk 0:01:22]} 15. f3 {[%clk 0:02:00.7]} 15... Qa5+
{[%clk 0:01:11]} 16. Kf2 {[%clk 0:01:57.2]} 16... exf3 {[%clk 0:00:56.2]} 17.
Qxf3 {[%clk 0:01:56.4]} 17... Raf8 {[%clk 0:00:56]} 18. hxg6+ {[%clk 0:01:51.4]}
18... hxg6 {[%clk 0:00:55.3]} 19. Rxh8 {[%clk 0:01:50]} 19... Rxh8 {[%clk
0:00:55.3]} 20. Bg5+ {[%clk 0:01:47.9]} 20... Kg8 {[%clk 0:00:53.3]} 21. c5
{[%clk 0:01:37.8]} 21... Qd2+ {[%clk 0:00:51.8]} 22. Kg1 {[%clk 0:01:37.6]}
22... e5 {[%clk 0:00:46.2]} 23. Bxd5+ {[%clk 0:01:30.5]} 23... cxd5 {[%clk
0:00:46.2]} 24. Qxd5+ {[%clk 0:01:31.4]} 24... Kh7 {[%clk 0:00:46.2]} 25. Qxd7
{[%clk 0:01:31.9]} 25... Rf8 {[%clk 0:00:45.9]} 26. Qh3+ {[%clk 0:01:29.2]}
26... Kg8 {[%clk 0:00:45.4]} 27. Qe6+ {[%clk 0:01:29.4]} 27... Kh7 {[%clk
0:00:44.5]} 28. dxe5 {[%clk 0:01:29.9]} 28... Rf5 {[%clk 0:00:38.7]} 29. Bf4
{[%clk 0:01:21.7]} 29... Qc2 {[%clk 0:00:19.5]} 30. Rf1 {[%clk 0:01:07.4]} 30...
g5 {[%clk 0:00:19.3]} 31. Bg3 {[%clk 0:00:54.1]} 31... Rxf1+ {[%clk 0:00:17.5]}
32. Kxf1 {[%clk 0:00:55]} 32... Qd1+ {[%clk 0:00:16]} 33. Kf2 {[%clk 0:00:55.3]}
33... Qd2+ {[%clk 0:00:15.4]} 34. Kg1 {[%clk 0:00:55.9]} 34... Qxe3+ {[%clk
0:00:14.8]} 35. Kh2 {[%clk 0:00:56.1]} 35... Qe4 {[%clk 0:00:12.8]} 36. b4
{[%clk 0:00:45.2]} 36... Qg6 {[%clk 0:00:06.7]} 37. Qh3+ {[%clk 0:00:42.2]}
37... Kg8 {[%clk 0:00:05.7]} 38. Qc8+ {[%clk 0:00:41]} 38... Kh7 {[%clk
0:00:05.9]} 39. Qd7 {[%clk 0:00:37]} 39... g4 {[%clk 0:00:04.4]} 40. e6 {[%clk
0:00:33.7]} 40... Qh6+ {[%clk 0:00:04.1]} 41. Kg1 {[%clk 0:00:34.1]} 41... Qe3+
{[%clk 0:00:04.6]} 42. Kf1 {[%clk 0:00:30.6]} 42... Qc1+ {[%clk 0:00:03.7]} 43.
Ke2 {[%clk 0:00:30.6]} 43... Qc2+ {[%clk 0:00:03.3]} 44. Ke3 {[%clk 0:00:31.3]}
44... Qc3+ {[%clk 0:00:03.2]} 45. Qd3+ {[%clk 0:00:31]} 45... Qxd3+ {[%clk
0:00:02.3]} 46. Kxd3 {[%clk 0:00:31.9]} 46... Kg6 {[%clk 0:00:02.1]} 47. Ke4
{[%clk 0:00:32.5]} 47... Kf6 {[%clk 0:00:02.6]} 48. Be5+ {[%clk 0:00:30.4]} 1-0

[Event "Late-Titled-Tuesday-Blitz-January-23-2024"]
[Site "Chess.com"]
[Date "2024.01.23"]
[Round "3"]
[White "Teidi96"]
[Black "DrCeltic"]
[Result "0-1"]
[WhiteElo "2417"]
[BlackElo "2604"]
[TimeControl "180+1"]
[EndTime "14:28:34 PST"]
[Termination "DrCeltic won on time"]

1. e4 {[%clk 0:03:00.9]} 1... c5 {[%clk 0:02:59.6]} 2. Nf3 {[%clk 0:03:00.9]}
2... e6 {[%clk 0:03:00.1]} 3. d4 {[%clk 0:03:01]} 3... cxd4 {[%clk 0:03:01]} 4.
Nxd4 {[%clk 0:03:01.8]} 4... Nf6 {[%clk 0:03:01.9]} 5. Nc3 {[%clk 0:03:02]} 5...
d6 {[%clk 0:03:02.2]} 6. Be2 {[%clk 0:03:01.2]} 6... Be7 {[%clk 0:03:02.2]} 7.
O-O {[%clk 0:03:01.3]} 7... O-O {[%clk 0:03:02.6]} 8. f4 {[%clk 0:02:46.9]} 8...
a6 {[%clk 0:03:01.8]} 9. Kh1 {[%clk 0:02:42.8]} 9... Qc7 {[%clk 0:02:59.6]} 10.
a4 {[%clk 0:02:40.2]} 10... Nc6 {[%clk 0:03:00]} 11. Be3 {[%clk 0:02:39.3]}
11... Nxd4 {[%clk 0:02:59]} 12. Bxd4 {[%clk 0:02:39.3]} 12... e5 {[%clk
0:02:59.5]} 13. Be3 {[%clk 0:02:24.6]} 13... exf4 {[%clk 0:02:59.5]} 14. Bxf4
{[%clk 0:02:24.3]} 14... Be6 {[%clk 0:03:00]} 15. Bf3 {[%clk 0:02:19.8]} 15...
Rac8 {[%clk 0:02:55.9]} 16. Rf2 {[%clk 0:02:15.9]} 16... Rfe8 {[%clk 0:02:43.3]}
17. a5 {[%clk 0:02:00]} 17... Nd7 {[%clk 0:02:38.3]} 18. Nd5 {[%clk 0:01:54.6]}
18... Bxd5 {[%clk 0:02:38.5]} 19. exd5 {[%clk 0:01:48.5]} 19... Ne5 {[%clk
0:02:34.6]} 20. Bxe5 {[%clk 0:01:42.3]} 20... dxe5 {[%clk 0:02:35.5]} 21. b3
{[%clk 0:01:39.2]} 21... Bc5 {[%clk 0:02:29.1]} 22. Rd2 {[%clk 0:01:33.2]} 22...
Be3 {[%clk 0:02:22.2]} 23. Rd3 {[%clk 0:01:26]} 23... Bd4 {[%clk 0:02:21.7]} 24.
Ra2 {[%clk 0:01:24]} 24... e4 {[%clk 0:01:52.3]} 25. Rxd4 {[%clk 0:01:18.1]}
25... exf3 {[%clk 0:01:52.2]} 26. gxf3 {[%clk 0:01:15.5]} 26... Qc3 {[%clk
0:01:50.3]} 27. Kg2 {[%clk 0:00:55.8]} 27... Rcd8 {[%clk 0:00:57.6]} 28. Qd2
{[%clk 0:00:50]} 28... Re2+ {[%clk 0:00:34.5]} 29. Qxe2 {[%clk 0:00:46.3]} 29...
Qxd4 {[%clk 0:00:34.8]} 30. c4 {[%clk 0:00:42]} 30... h5 {[%clk 0:00:34.7]} 31.
Qe7 {[%clk 0:00:31.6]} 31... Rf8 {[%clk 0:00:20]} 32. Qxb7 {[%clk 0:00:20.7]}
32... Re8 {[%clk 0:00:16.2]} 33. Qb6 {[%clk 0:00:17.8]} 33... Qf4 {[%clk
0:00:12.8]} 34. Qf2 {[%clk 0:00:07]} 34... Re5 {[%clk 0:00:13.1]} 35. Kh1 {[%clk
0:00:06.5]} 35... Qc1+ {[%clk 0:00:11.2]} 36. Kg2 {[%clk 0:00:04.2]} 36... Rg5+
{[%clk 0:00:11.3]} 37. Kh3 {[%clk 0:00:03.8]} 37... Qf4 {[%clk 0:00:11.8]} 0-1

[Event "Late-Titled-Tuesday-Blitz-January-23-2024"]
[Site "Chess.com"]
[Date "2024.01.23"]
[Round "3"]
[White "Sanan_Sjugirov"]
[Black "KNVB"]
[Result "1-0"]
[WhiteElo "3019"]
[BlackElo "2746"]
[TimeControl "180+1"]
[EndTime "14:28:35 PST"]
[Termination "Sanan_Sjugirov won by checkmate"]

1. Nf3 {[%clk 0:03:00.9]} 1... Nf6 {[%clk 0:03:00]} 2. c4 {[%clk 0:02:59.9]}
2... c5 {[%clk 0:02:59.9]} 3. g3 {[%clk 0:02:59.8]} 3... b6 {[%clk 0:03:00.3]}
4. Bg2 {[%clk 0:02:59.3]} 4... Bb7 {[%clk 0:03:01]} 5. O-O {[%clk 0:02:58.8]}
5... e6 {[%clk 0:03:01.2]} 6. Nc3 {[%clk 0:02:57]} 6... a6 {[%clk 0:03:01.6]} 7.
d3 {[%clk 0:02:56.3]} 7... d6 {[%clk 0:03:01.3]} 8. e4 {[%clk 0:02:56]} 8... Be7
{[%clk 0:03:01.8]} 9. Ng5 {[%clk 0:02:53.2]} 9... Nfd7 {[%clk 0:02:41]} 10. Nh3
{[%clk 0:02:51.5]} 10... Nc6 {[%clk 0:02:30]} 11. f4 {[%clk 0:02:51.1]} 11...
Nd4 {[%clk 0:02:28.8]} 12. Be3 {[%clk 0:02:40.2]} 12... b5 {[%clk 0:02:23.2]}
13. Nf2 {[%clk 0:02:35.1]} 13... Qb6 {[%clk 0:02:15.6]} 14. b3 {[%clk
0:02:33.8]} 14... h5 {[%clk 0:02:02]} 15. h3 {[%clk 0:02:30.8]} 15... Rb8 {[%clk
0:01:51.1]} 16. Rc1 {[%clk 0:02:30.3]} 16... g6 {[%clk 0:01:42]} 17. Ne2 {[%clk
0:02:25.9]} 17... f5 {[%clk 0:01:21.1]} 18. Nc3 {[%clk 0:02:13.6]} 18... Kf7
{[%clk 0:01:12.3]} 19. Re1 {[%clk 0:02:11.9]} 19... Bf6 {[%clk 0:01:05.5]} 20.
Ne2 {[%clk 0:01:48.1]} 20... Rbe8 {[%clk 0:00:55.3]} 21. cxb5 {[%clk 0:01:17.9]}
21... axb5 {[%clk 0:00:52.6]} 22. Nxd4 {[%clk 0:01:18.2]} 22... cxd4 {[%clk
0:00:33.8]} 23. Bd2 {[%clk 0:01:17.8]} 23... Nc5 {[%clk 0:00:34.4]} 24. Bb4
{[%clk 0:01:11.1]} 24... Rc8 {[%clk 0:00:29.6]} 25. Qe2 {[%clk 0:00:58.1]} 25...
Rhe8 {[%clk 0:00:17.7]} 26. Bxc5 {[%clk 0:00:29.9]} 26... dxc5 {[%clk
0:00:09.2]} 27. a4 {[%clk 0:00:27.1]} 27... Ba6 {[%clk 0:00:06.9]} 28. exf5
{[%clk 0:00:22.6]} 28... exf5 {[%clk 0:00:06.3]} 29. Qf3 {[%clk 0:00:20.4]}
29... bxa4 {[%clk 0:00:03.9]} 30. bxa4 {[%clk 0:00:20]} 30... Qa5 {[%clk
0:00:04.2]} 31. Qd5+ {[%clk 0:00:18.6]} 31... Kg7 {[%clk 0:00:02.7]} 32. Qd7+
{[%clk 0:00:18.1]} 32... Kf8 {[%clk 0:00:01.9]} 33. Rxe8+ {[%clk 0:00:08.5]}
33... Rxe8 {[%clk 0:00:02.8]} 34. Bd5 {[%clk 0:00:05.7]} 34... Re7 {[%clk
0:00:01.9]} 35. Qd6 {[%clk 0:00:05.3]} 35... Kg7 {[%clk 0:00:01.7]} 36. Kg2
{[%clk 0:00:05.6]} 36... Qd2 {[%clk 0:00:01.6]} 37. Rb1 {[%clk 0:00:04.4]} 37...
Bxd3 {[%clk 0:00:01.7]} 38. Rb8 {[%clk 0:00:04.3]} 38... Re2 {[%clk 0:00:01.3]}
39. Rb7+ {[%clk 0:00:03.7]} 39... Kh6 {[%clk 0:00:01.2]} 40. Qf8+ {[%clk
0:00:04]} 40... Bg7 {[%clk 0:00:01.3]} 41. Qxg7# {[%clk 0:00:04.9]} 1-0

[Event "Late-Titled-Tuesday-Blitz-January-23-2024"]
[Site "Chess.com"]
[Date "2024.01.23"]
[Round "3"]
[White "tptagain"]
[Black "greekplayer1"]
[Result "1-0"]
[WhiteElo "2926"]
[BlackElo "2702"]
[TimeControl "180+1"]
[EndTime "14:28:36 PST"]
[Termination "tptagain won by resignation"]

1. Nf3 {[%clk 0:03:00.9]} 1... Nf6 {[%clk 0:02:27.9]} 2. b3 {[%clk 0:03:00.7]}
2... g6 {[%clk 0:02:27.1]} 3. Bb2 {[%clk 0:03:01.1]} 3... Bg7 {[%clk 0:02:27.8]}
4. g3 {[%clk 0:03:01.6]} 4... O-O {[%clk 0:02:28.4]} 5. Bg2 {[%clk 0:03:01.9]}
5... d5 {[%clk 0:02:28.9]} 6. c4 {[%clk 0:03:01.7]} 6... c5 {[%clk 0:02:29.5]}
7. cxd5 {[%clk 0:03:01.9]} 7... Nxd5 {[%clk 0:02:30.4]} 8. Bxg7 {[%clk
0:02:59.9]} 8... Kxg7 {[%clk 0:02:31.3]} 9. O-O {[%clk 0:02:51.1]} 9... Nc6
{[%clk 0:02:31.3]} 10. d4 {[%clk 0:02:51.5]} 10... cxd4 {[%clk 0:02:21.3]} 11.
Nxd4 {[%clk 0:02:52.4]} 11... Nxd4 {[%clk 0:02:21.9]} 12. Qxd4+ {[%clk
0:02:52.5]} 12... Nf6 {[%clk 0:02:22.8]} 13. Qe5 {[%clk 0:02:53.1]} 13... Be6
{[%clk 0:02:21.3]} 14. Bxb7 {[%clk 0:02:46.3]} 14... Rb8 {[%clk 0:02:21]} 15.
Bf3 {[%clk 0:02:41.8]} 15... h5 {[%clk 0:02:13.4]} 16. h4 {[%clk 0:02:39.5]}
16... Rc8 {[%clk 0:02:05.2]} 17. Nc3 {[%clk 0:02:34.9]} 17... Qb6 {[%clk
0:02:01.6]} 18. Na4 {[%clk 0:02:32.3]} 18... Qb4 {[%clk 0:01:53.4]} 19. Rac1
{[%clk 0:02:27.5]} 19... Kg8 {[%clk 0:01:38.2]} 20. Rfd1 {[%clk 0:02:00.4]}
20... Rfd8 {[%clk 0:01:31.2]} 21. Rxd8+ {[%clk 0:01:40.4]} 21... Rxd8 {[%clk
0:01:29.3]} 22. Qe3 {[%clk 0:01:39]} 22... Qa3 {[%clk 0:01:19.4]} 23. Nc5 {[%clk
0:01:21.8]} 23... Rd6 {[%clk 0:01:11.3]} 24. Nxe6 {[%clk 0:01:13.7]} 24... Rxe6
{[%clk 0:01:12.2]} 25. Qh6 {[%clk 0:01:10.2]} 25... Qa6 {[%clk 0:01:05.2]} 26.
Rd1 {[%clk 0:01:03.8]} 26... Rd6 {[%clk 0:01:02.6]} 27. Rxd6 {[%clk 0:01:04.1]}
27... Qxd6 {[%clk 0:01:03.5]} 28. Qe3 {[%clk 0:01:03.2]} 28... Qa3 {[%clk
0:01:02.5]} 29. Qd2 {[%clk 0:01:01.1]} 29... a5 {[%clk 0:00:58.6]} 30. Kg2
{[%clk 0:01:00.9]} 30... Kg7 {[%clk 0:00:56.5]} 31. Qc2 {[%clk 0:00:58.4]} 31...
e5 {[%clk 0:00:47.7]} 32. e3 {[%clk 0:00:57]} 32... Qb4 {[%clk 0:00:46.7]} 33.
Qb2 {[%clk 0:00:52]} 33... e4 {[%clk 0:00:39]} 34. Be2 {[%clk 0:00:52]} 34... a4
{[%clk 0:00:39.5]} 35. Bc4 {[%clk 0:00:40.1]} 35... axb3 {[%clk 0:00:32.6]} 36.
axb3 {[%clk 0:00:37.6]} 36... Qb6 {[%clk 0:00:31.7]} 37. b4 {[%clk 0:00:37.1]}
37... Kg8 {[%clk 0:00:27]} 38. b5 {[%clk 0:00:37.3]} 38... Ng4 {[%clk
0:00:26.7]} 39. Be2 {[%clk 0:00:36.6]} 39... Kh7 {[%clk 0:00:20.6]} 40. Bxg4
{[%clk 0:00:36.5]} 40... hxg4 {[%clk 0:00:21.5]} 41. Qe5 {[%clk 0:00:36.5]}
41... f5 {[%clk 0:00:19.8]} 42. h5 {[%clk 0:00:36]} 42... Kh6 {[%clk 0:00:19.4]}
43. Qh8+ {[%clk 0:00:31.6]} 43... Kg5 {[%clk 0:00:19.6]} 44. hxg6 {[%clk
0:00:30.4]} 44... Kxg6 {[%clk 0:00:20.2]} 45. Qg8+ {[%clk 0:00:30]} 45... Kf6
{[%clk 0:00:18.4]} 46. Qe8 {[%clk 0:00:30.2]} 46... Qa5 {[%clk 0:00:16.7]} 47.
Qc6+ {[%clk 0:00:30.1]} 47... Kg5 {[%clk 0:00:17.2]} 48. b6 {[%clk 0:00:27.9]}
48... Qe1 {[%clk 0:00:15.1]} 49. b7 {[%clk 0:00:23.6]} 49... Qe2 {[%clk
0:00:14.6]} 50. Qd6 {[%clk 0:00:21.7]} 50... Qf3+ {[%clk 0:00:10.6]} 51. Kg1
{[%clk 0:00:22]} 51... Qd1+ {[%clk 0:00:11.2]} 52. Qxd1 {[%clk 0:00:21.4]} 1-0